Cogmind - Beta 15 @@@ ROGUE MODE // 2025.08.03 @ 21:44:41 Player: tape Result: Self-destructed Performance ------------- Evolutions (0) 0 Regions Visited (4) 800 Robots Destroyed (14) 70 Value Destroyed (154) 154 Prototype IDs (12) 240 Alien Tech Used (0) 0 Bonus (196) 196 TOTAL SCORE: 1460 Bonus ------- Registered with UFD 300 Friendly Fire -104 Cogmind --------- Core Integrity 202/250 Matter 232/300 Energy 200/200 System Corruption 0% Temperature Cool (0) Movement Treading (160) Location -9/Scraptown Parts ------- > --- POWER (1) -------- Subdweller Power Source > --- PROPULSION (2) --- Light Treads Light Treads > --- UTILITY (2) ------ Spectral Analyzer > --- WEAPON (2) ------- Assault Rifle Mini Grenade Launcher > --- INVENTORY (5) ---- Ion Engine Wheel High-capacity Matter Pod (200) Experimental Sensor Array Battle Rifle Peak State ------------ > --- POWER ------------ Subdweller Power Source > --- PROPULSION ------- Light Treads Light Treads > --- UTILITY ---------- Spectral Analyzer > --- WEAPON ----------- Assault Rifle Mini Grenade Launcher > --- INVENTORY -------- Ion Engine Wheel High-capacity Matter Pod Experimental Sensor Array Battle Rifle [Rating: 17] Favorites ----------- Power Light Ion Engine Engine Light Ion Engine Propulsion Light Treads Treads Light Treads Utility Small Storage Unit Device Seismic Detector Storage Small Storage Unit Processor Spectral Analyzer Protection Scrap Shield Weapon Assault Rifle Ballistic Gun Assault Rifle Launcher Mini Grenade Launcher Build | -11 -10 -10 -10 -9 ------- Run | Yrd Mat Min Sub Scr Slots Evolved . | . . . . . Power . | . . . . . Propulsion . | . . . . . Utility . | . . . . . Weapon . | . . . . . Parts Attached 13 | 7 . 2 3 1 Power 2 | 1 . . 1 . Engine 2 | 1 . . 1 . Core . | . . . . . Reactor . | . . . . . Propulsion 2 | 2 . . . . Treads 2 | 2 . . . . Leg . | . . . . . Wheel . | . . . . . Hover . | . . . . . Flight . | . . . . . Utility 5 | 2 . 1 1 1 Device 2 | 1 . 1 . . Storage 1 | 1 . . . . Processor 1 | . . . . 1 Hackware . | . . . . . Protection 1 | . . . 1 . Artifact . | . . . . . Weapon 4 | 2 . 1 1 . Energy Gun . | . . . . . Energy Cannon . | . . . . . Ballistic Gun 3 | 2 . . 1 . Ballistic Cannon . | . . . . . Launcher 1 | . . 1 . . Special Weapon . | . . . . . Impact Weapon . | . . . . . Slashing Weapon . | . . . . . Piercing Weapon . | . . . . . Special Melee Weapon . | . . . . . Unidentified Prototypes 1 | . . 1 . . Parts Lost 2 | . . . 2 . Power 1 | . . . 1 . Propulsion . | . . . . . Utility 1 | . . . 1 . Weapon . | . . . . . Highest Loss Streak 1 | . . . 1 . To Critical Strikes . | . . . . . Average Backups 5 | 2 6 7 5 5 Power . | . 1 1 1 1 Propulsion . | . 1 1 1 1 Utility 1 | . . . 2 2 Weapon 2 | . 3 3 1 1 Tool/Special . | . . . . . Unused Backups 7 | . . 1 3 3 Power 1 | . . . . 1 Propulsion 1 | . . . . 1 Utility 1 | . . . . 1 Weapon 3 | . . 1 2 . Tool/Special 1 | . . . 1 . Average Slot Usage (%) 91 | . 100 99 83 76 Engine 13 | . 14 14 13 14 Treads 28 | . 28 28 28 28 Device 8 | . 14 13 . . Storage 8 | . 14 14 . . Processor 1 | . . . . 5 Protection 2 | . . . 11 . Ballistic Gun 24 | . 28 27 25 14 Launcher 3 | . . . 2 14 Peak Build Rating 17 | 7 8 16 12 17 Average Rating 8 | 5 7 8 10 11 On Entrance 6 | . 7 8 8 8 Naked Turns . | . . . . . Heaviest Build 27 | 13 13 13 27 8 Greatest Support 40 | 40 40 40 40 40 Greatest Overweight (x) . | . . . . . Average Overweight (x) . | . . . . . Largest Inventory Capacity 8 | 8 8 8 8 5 Average Capacity 6 | 7 8 8 5 5 Most Carried 8 | 3 7 8 8 5 Average Carried 5 | 2 6 7 5 5 Final Capacity 8 | 8 8 8 5 5 Final Carried 8 | 3 7 8 5 5 Class Distribution -------------------- 100% | Mutant Dominant Class ---------------- Mutant | -10/Materials Mutant | -10/Mines Mutant | -10/Subcaves Mutant | -9/Scraptown Resources | -11 -10 -10 -10 -9 ----------- Run | Yrd Mat Min Sub Scr Matter Collected 633 | 402 . 111 120 . Remotely . | . . . . . Salvage Created 324 | 171 52 53 48 . Parts 31 | 19 2 9 1 . Haulers Intercepted 1 | . 1 . . . Recyclers Shooed . | . . . . . Parts Field Recycled . | . . . . . Retrieved Matter . | . . . . . Parts Self-Destructed 12 | . . . 12 . Prevented . | . . . . . Kills | -11 -10 -10 -10 -9 ------- Run | Yrd Mat Min Sub Scr Combat Hostiles Destroyed 6 | . . 5 1 . Guns 3 | . . 2 1 . AOE 3 | . . 3 . . Classes Destroyed 7 | 3 1 1 2 . Worker 1 | 1 . . . . Tunneler 5 | 4 . 1 . . Hauler 1 | . 1 . . . Recycler 1 | 1 . . . . Swarmer 5 | . . 5 . . Artisan 1 | . . . 1 . Subdweller 1 | . . . 1 . Best Kill Streak 4 | 4 1 3 1 . Combat Bots Only 3 | . . 3 1 . Max Kills in Single Turn 3 | 1 1 3 1 . Gunslinging . | . . . . . Exploded 3 | . . 3 . . Melee . | . . . . . Uniques/NPCs Destroyed . | . . . . . Combat | -11 -10 -10 -10 -9 -------- Run | Yrd Mat Min Sub Scr Hostile Shots Fired 30 | . . 9 21 . Missed 5 | . . 3 2 . Hits 25 | . . 6 19 . Projectile 25 | . . 6 19 . Damage Taken 622 | . . 70 552 . Core 48 | . . 22 26 . Absorbed by Shields . | . . . . . Core Remaining (%) 100 | 100 . . . . Volleys Fired 50 | 22 4 5 19 . Largest 2 | 2 2 2 2 . Hottest 45 | 40 40 40 45 . Shots Fired 92 | 44 8 9 31 . Gun 86 | 44 8 8 26 . Cannon . | . . . . . Launcher 6 | . . 1 5 . Special . | . . . . . Kinetic 86 | 44 8 8 26 . Thermal . | . . . . . Explosive 6 | . . 1 5 . Electromagnetic . | . . . . . Robot Hit Streak 21 | 5 2 3 21 . Robot Miss Streak 3 | 3 2 2 1 . Penetration Max . | . . . . . Secondary Targets 1 | . . . 1 . Max Gunslinging Chain 1 | . . . 1 . Shots Hit Robots 57 | 26 4 4 23 . Core Hits 23 | 7 2 6 8 . Critical Kills . | . . . . . Critical Parts Destroyed 1 | . . . 1 . Critical Strikes 1 | . . . 1 . Destroy 1 | . . . 1 . Melee Attacks . | . . . . . Impact . | . . . . . Slashing . | . . . . . Piercing . | . . . . . Sneak Attacks . | . . . . . Combat Hostiles . | . . . . . Follow-up Attacks . | . . . . . Damage Inflicted 1043 | 342 49 239 413 . Guns 731 | 342 49 61 279 . Cannons . | . . . . . Explosions 284 | . . 150 134 . Melee . | . . . . . Ramming 28 | . . 28 . . Kinetic 731 | 342 49 61 279 . Thermal . | . . . . . Explosive 284 | . . 150 134 . Electromagnetic . | . . . . . Impact . | . . . . . Slashing . | . . . . . Piercing . | . . . . . Highest Corruption . | . . . . . Average Corruption . | . . . . . Corruption Purged . | . . . . . Corruption Blocked . | . . . . . Overload Shots . | . . . . . Overflow Damage . | . . . . . Projectiles . | . . . . . Explosions . | . . . . . Melee . | . . . . . Knockbacks . | . . . . . Impact . | . . . . . Kinetic . | . . . . . Secondary . | . . . . . Self-Inflicted Damage 139 | . . 27 112 . Shots 4 | . . 1 3 . Rammed 5 | . 1 4 . . Targets Rammed 6 | . 1 5 . . Kicked . | . . . . . Crushed 1 | . . 1 . . Highest Temperature . | . . . . . Average Temperature . | . . . . . Received Heat Transfer 93 | . . . 93 . Siege Activations . | . . . . . Martial Activations . | . . . . . Shielding Activations . | . . . . . Robots Disrupted . | . . . . . Combat Hostiles . | . . . . . Robots Corrupted . | . . . . . Combat Hostiles . | . . . . . Parts Fried . | . . . . . Impact Corruptions . | . . . . . Robots Melted . | . . . . . Combat Hostiles . | . . . . . Parts Melted . | . . . . . Heat Transferred . | . . . . . Parts Sabotaged . | . . . . . Parts Stolen . | . . . . . Parts Stripped . | . . . . . Power Chain Reactions . | . . . . . Alert | -11 -10 -10 -10 -9 ------- Run | Yrd Mat Min Sub Scr Maximum Alert Level . | . . . . . Low Security (%) 100 | 100 100 100 . . Level 1 . | . . . . . Level 2 . | . . . . . Level 3 . | . . . . . Level 4 . | . . . . . Level 5 . | . . . . . High Security . | . . . . . Max Security . | . . . . . Peak Influence 77 | 15 36 77 . . Initial . | . . . . . Average 9 | 1 10 10 . . Influence Increases 230 | 30 53 147 . . Destroy 0b10 Robot/C 100 | . . 100 . . Destroy 0b10 Robot/NC 40 | 30 5 5 . . Destroy Leader 22 | . 2 20 . . Disable Machine 30 | . 30 . . . Destroy Structure 23 | . 16 7 . . Lose Combat Pursuer 15 | . . 15 . . Influence Decreases 230 | 30 53 147 . . Time Decay 230 | 30 53 147 . . Squads Dispatched . | . . . . . Investigation . | . . . . . Extermination . | . . . . . Reinforcement . | . . . . . Assault . | . . . . . Garrison . | . . . . . Intercept . | . . . . . Searches Triggered . | . . . . . Construction Impeded . | . . . . . Haulers Reinforced . | . . . . . Active Scanning Responses . | . . . . . Cargo Convoy Interrupts . | . . . . . Stealth | -11 -10 -10 -10 -9 --------- Run | Yrd Mat Min Sub Scr Distress Signals . | . . . . . Communications Jammed . | . . . . . Distress Signals . | . . . . . Times Spotted 12 | . 2 6 4 . Peak Tracking Total 3 | . 2 3 2 . Tactical Retreats 1 | . . 1 . . Traps | -11 -10 -10 -10 -9 ------- Run | Yrd Mat Min Sub Scr Traps Triggered . | . . . . . Indirectly . | . . . . . Trap Hack Attempts . | . . . . . Triggered . | . . . . . Disarmed . | . . . . . Reprogrammed . | . . . . . Reused . | . . . . . Traps Extracted . | . . . . . Installed . | . . . . . Triggered . | . . . . . Machines | -11 -10 -10 -10 -9 ---------- Run | Yrd Mat Min Sub Scr Machines Disabled 2 | . 2 . . . Max in Single Turn 2 | . 2 . . . Machines Repaired . | . . . . . Machines Dismantled . | . . . . . Machines Sabotaged . | . . . . . Overloaded Fab Kills . | . . . . . Hacking | -11 -10 -10 -10 -9 --------- Run | Yrd Mat Min Sub Scr Machines Accessed 1 | . . . . 1 Terminals . | . . . . . Fabricators . | . . . . . Repair Stations . | . . . . . Recycling Units . | . . . . . Scanalyzers . | . . . . . Garrison Access . | . . . . . Total Hacks 1 | . . . . 1 Successful 1 | . . . . 1 Failed . | . . . . . Catastrophic . | . . . . . Database Lockouts . | . . . . . Manual . | . . . . . Terminals . | . . . . . Fabricators . | . . . . . Repair Stations . | . . . . . Recycling Units . | . . . . . Scanalyzers . | . . . . . Garrison Access . | . . . . . Terminal Hacks 1 | . . . . 1 Proto ID Catalog 1 | . . . . 1 Fabricator Hacks . | . . . . . Repair Station Hacks . | . . . . . Recycling Unit Hacks . | . . . . . Scanalyzer . | . . . . . Garrison Access Hacks . | . . . . . Unauthorized Hacks . | . . . . . Terminals . | . . . . . Fabricators . | . . . . . Repair Stations . | . . . . . Recycling Units . | . . . . . Scanalyzers . | . . . . . Garrison Access . | . . . . . Data Cores Recovered . | . . . . . Used . | . . . . . Hacking Detections . | . . . . . Full Trace Events . | . . . . . Feedback Events . | . . . . . Feedback Blocked . | . . . . . Robot Schematics Acquired . | . . . . . Robots Built . | . . . . . Authchips . | . . . . . Time . | . . . . . Total Robot Build Rating . | . . . . . Part Schematics Acquired . | . . . . . Parts Built . | . . . . . Authchips . | . . . . . Time . | . . . . . Total Part Build Rating . | . . . . . Parts Repaired . | . . . . . Time . | . . . . . Parts Recycled . | . . . . . Recycled Matter . | . . . . . Retrieved Matter . | . . . . . Retrieved Components . | . . . . . Parts Scanalyzed . | . . . . . Part Schematics Acquired . | . . . . . Parts Damaged . | . . . . . Bothacking | -11 -10 -10 -10 -9 ------------ Run | Yrd Mat Min Sub Scr Used RIF Installer . | . . . . . Robots Hacked . | . . . . . Non-combat . | . . . . . Combat . | . . . . . Robot Hacks Applied . | . . . . . Relay Couplers Released . | . . . . . Fabnet Peak Effective % . | . . . . . Robots Rewired . | . . . . . Allies Hacked . | . . . . . Hacks Repelled . | . . . . . Allies | -11 -10 -10 -10 -9 -------- Run | Yrd Mat Min Sub Scr Total Allies . | . . . . . Largest Group . | . . . . . Highest-Rated Group . | . . . . . Highest-Rated Ally . | . . . . . Total Orders . | . . . . . Ally Attacks . | . . . . . Total Damage . | . . . . . Kills . | . . . . . Allies Corrupted . | . . . . . Allies Melted . | . . . . . Intel | -11 -10 -10 -10 -9 ------- Run | Yrd Mat Min Sub Scr Active Infowar (turns) 1671 | 38 151 1253 5 224 Optics 224 | . . . . 224 Sensors 2 | . . 2 . . Seismic 1445 | 38 151 1251 5 . Robot Analysis Total . | . . . . . Derelict Logs Recovered 1 | . . 1 . . Drone Launches . | . . . . . Drone Recoveries . | . . . . . Exploration | -11 -10 -10 -10 -9 ------------- Run | Yrd Mat Min Sub Scr Turns Passed 2697 | 304 151 1260 450 532 Spaces Moved 1196 | 90 84 471 220 331 Core 4 | 4 . . . . Treads 1192 | 86 84 471 220 331 Legs . | . . . . . Wheels . | . . . . . Hover . | . . . . . Flight . | . . . . . Fastest Speed 50 | 50 160 160 160 160 Average Speed 159 | 155 160 160 160 160 Slowest Speed 160 | 160 160 160 160 160 Overloaded Moves . | . . . . . Propulsion Burnouts . | . . . . . Robots Hopped . | . . . . . Potential Cave-ins . | . . . . . Cave-ins Triggered . | . . . . . Exploration Rate (%) 32 | 7 27 74 14 39 Regions Visited 4 Branch Regions 3 Pre-discovered Areas . | . . . . . Known Exits Taken . | . . . . . Unknown Exits Taken 4 | 1 1 1 1 . Scrap Searched . | . . . . . Spaces Dug 7 | . . 7 . . Terrain Destroyed 75 | . 28 7 40 . Melee . | . . . . . Projectile . | . . . . . AOE 75 | . 28 7 40 . Terrain Rammed . | . . . . . Walls Destroyed . | . . . . . Machines Disabled . | . . . . . Actions | -11 -10 -10 -10 -9 --------- Run | Yrd Mat Min Sub Scr Total 1883 | 207 92 965 287 332 Wait 602 | 86 . 478 38 . Move 1192 | 89 83 470 219 331 Hop . | . . . . . Pick Up 8 | 3 4 1 . . Fast Attach 11 | 7 . 1 2 1 Attach . | . . . . . Detach 1 | . . 1 . . Swap 7 | . . 3 4 . Drop 4 | . . 1 3 . Fire 50 | 22 4 5 19 . Melee . | . . . . . Ram . | . . . . . Kick . | . . . . . Crush 6 | . 1 5 . . Escape Stasis . | . . . . . Rewire . | . . . . . Trap . | . . . . . Miscellaneous 2 | . . . 2 . Route ------- -11/Scrapyard -10/Materials (discovered 2 exits: [*Min x2]) -10/Mines (discovered 2 exits: [*Mat] / [*Sub]) -10/Subcaves (discovered 2 exits: [*Mat] / *Scr) -9/Scraptown History --------- Turn | Location | Event 3 | -11/Scrapyard | Discovered new exit (range 16) 305 | -11/Scrapyard | Entered Materials 306 | -10/Materials | Build established: Mutant 337 | -10/Materials | Discovered new exit (range 15) 429 | -10/Materials | Discovered new exit (range 12) 456 | -10/Materials | Entered Mines 458 | -10/Mines | Discovered new exit (range 14) 487 | -10/Mines | Met a Derelict bent on vengeance 1383 | -10/Mines | Found a damaged Exp. Sensor Array with a note attached 1386 | -10/Mines | Found Prototype Device 1386 | -10/Mines | Identified Exp. Sensor Array 1548 | -10/Mines | Found a hidden stash of uninstalled traps 1704 | -10/Mines | Discovered new exit (range 9) 1716 | -10/Mines | Entered Subcaves 1717 | -10/Subcaves | Approached by a straggling Scientist 1844 | -10/Subcaves | Discovered new exit (range 9) 2089 | -10/Subcaves | Ambushed by Subdweller buried in earth 2093 | -10/Subcaves | Ambushed by angry Subdweller bent on revenge 2116 | -10/Subcaves | Scientist uncovered a shortcut to Scraptown 2166 | -10/Subcaves | Entered Scraptown 2322 | -9/Scraptown | Visited UFD Registry 2344 | -9/Scraptown | Registered with UFD as "Megalever" 2466 | -9/Scraptown | Visited Infowarlord's Domain 2474 | -9/Scraptown | Found Spectral Analyzer 2502 | -9/Scraptown | Visited Scrap Suit Storage 2542 | -9/Scraptown | Visited Science Guys 2600 | -9/Scraptown | Visited Analyses Database 2654 | -9/Scraptown | Visited Cartography Club 2682 | -9/Scraptown | Visited LU-1G1's Boring Crew 2698 | -9/Scraptown | Self-destructed Last Messages --------------- Cloaking Wrap 02600_ LOCAL NARROWCAST: DB 12. JC-PUE(j): Even though the principles of the Federation require us to listen to followers of the Great Nut, it's only fair, and better than a strictly top-down approach to governance. We know the drawbacks of that one. HU-UDK(h): We just like making maps! 02654_ LOCAL NARROWCAST: Cartography Club. We map, therefore we are. 02682_ LOCAL NARROWCAST: LU-1G1's Boring Crew. We dig so you don't have to. 9X-YPP(x): Being a member of the Crew is anything but boring. We're honored to dig crazy tunnels despite the potential for deadly cave-ins. It's quite a thrill if you can stomach it. Lose pursuers, find shorter routes to get where you need to go... Map ----- +----------------------------------------------------+ | ?????????????????????????????????????????????????? | | ?????????????????????????????????????????????????? | | ?????????????????????????????????????????????????? | | ???????????????????????????????????????????##????? | | ??????????????????????????????????????????# #???? | | ?????????????????????????????????????????? ???? | | ?????????????????????????????????????????? ???? | | ?????????????????????????????????????????? ???? | | ?????????????????????????????????????????? ???? | | ??????????????????????????????????????????# #???? | | ??????????????????????????????????????????# ##### | | ??????????????????????????????????????????# #"""" | | ??????????????????????????????????????????# #"""" | | ??????????????????????????????????????????# #""" | | ??????????????????????????????????????????# #" | | ???????????????????????????????##########?# #""" | | ??????????#????????????????????#""""""""#?# #"""" | | ??????????# ??????????#######??#"" " X "#?# #"" | | ??????????# ??????????# #??#"" "#?# #"" | | ????????### ######????# #??#""" ""#?# #"" | | ????????? #??# # # #?? #?# # | | ??????????? ????# #???? ??# #" | | ????????????# #?????##### #####?????# #???# ## ## | | ????????##### ########### ########### ##### ## ## | | ????????#"""" """"""""""" """"""""""" """"" "" "# | | ????????#" @ "# | | ????????#" "# | | ????????#" "# | | ????????#" "# | | ????????#" | | #?????""" """""""""""""""""""""""""""" x "# | | #????"""" """""""""""""""""""""""""""" "# | | #????""""p ""###### ################"" "# | | #???#"""" ""#??? ?????????????#"" "# | | #???#"""" ""#?? ????????????#"" "# | | ###?#"""" ""#? "" "" ???????????#"" "# | | ""#"#"""" ""# "" "" X????????###"" "# | | """"#"""" ""# " " ######### #"" "# | | ""#???###" "" ? "" | | ###?????#" "" ? "" "# | | #########" ""#? " " ######### #"" "# | | ""#? "" ""??????????###"" "# | | ""#???"" ""?????????????#"" "# | | ""#???? ?????????????#"" "# | | ""#???? ??????????????#"" "# | | ""###### ################"" "# | | """""""""""""""""""""""""""" "# | | """""""""""""""""""""""""""" | | "# | | "??" "# | +----------------------------------------------------+ Best States ------------- Heat Dissipation 25 Energy Generation 15 Energy Capacity 200 Matter Stores 300 Matter Capacity 300 Sight Range 24 Terrain Scan Density 10 Armor Coverage 800 Evasion (%) 40 Recoil Reduction 2 Item Schematics ----------------- None Robot Schematics ------------------ None Fabricated ------------ Nothing Repaired ---------- Nothing Alien Tech Used ----------------- None Achievements -------------- None Challenges ------------ None Game ------ Seed SubatomicArcInterrupter Manual? 0 Play Time 00:08:48 Cumulative 157.9 hours Start 2025.08.03 @ 21:37:03 End 2025.08.03 @ 21:44:41 Sessions 1 Manual Loads 0 Difficulty Rogue Special Mode None Game No. 79 Rogue 79 Adventurer 0 Explorer 0 Win Type - Total 17 Types 8/1/5/1/0/1/0/1/0/0 Lore% 63 Gallery% 56 Achievement% 67 Wizard Run 0 Options --------- Layout 1 ASCII 0 Keyboard 0 Movement Arrows Keybinds 0 Fullscreen 1 Font 24/Tamsyn Map View 50x35 Zoom Use 0% Tactical HUD 1 Map Filters NONE Filters NONE Steam 1 RUN: fdec64c3-636d-4b51-83bd-269e5f8bf531